bitfinex/quotes_BTCUSD_20240620
["timestamp","ask_amount","ask_price","bid_price","bid_amount"]
[1718885135384,0.00800825,66286.0,66285.0,0.82948556]
[1718885136577,0.00800825,66286.0,66285.0,0.72748556]
[1718885136928,0.00800825,66286.0,66285.0,0.82948556]
[1718885137165,0.00800825,66286.0,66285.0,0.98034856]
[1718885137357,0.00800825,66286.0,66285.0,1.30507556]
[1718885138167,0.00800825,66286.0,66285.0,1.35507556]
[1718885138965,0.00700825,66286.0,66285.0,1.32707556]
[1718885139363,0.00800825,66286.0,66285.0,1.53577556]
[1718885139568,0.00700825,66286.0,66285.0,1.52177556]
[1718885139971,0.00800825,66286.0,66285.0,1.52177556]
[1718885140188,0.00800825,66286.0,66285.0,1.50777556]
[1718885140189,0.00700825,66286.0,66285.0,1.50777556]
[1718885141021,0.00700825,66286.0,66285.0,1.80950256]
[1718885141351,0.00700825,66286.0,66285.0,1.82350256]
[1718885141753,0.00700825,66286.0,66285.0,1.83750256]
[1718885141954,0.00700825,66286.0,66285.0,2.12522956]
[1718885142389,0.00700825,66286.0,66285.0,2.13922956]
[1718885142592,0.00700825,66286.0,66285.0,2.06122956]
[1718885142833,0.00700825,66286.0,66285.0,2.12522956]
[1718885143049,0.00700825,66286.0,66285.0,2.44095656]
[1718885143210,0.00865,66291.0,66290.0,1.44796]
[1718885143443,0.00865,66291.0,66290.0,2.10592512]
[1718885143644,0.00865,66291.0,66290.0,2.12371382]
[1718885144505,0.00865,66292.0,66291.0,1.43715]
[1718885144710,0.00865,66292.0,66291.0,1.99899284]
[1718885144842,0.00865,66292.0,66291.0,2.01677673]
[1718885145229,0.00865,66296.0,66295.0,1.925664]
[1718885145429,0.00865,66296.0,66295.0,2.28192512]
[1718885145647,0.00865,66296.0,66295.0,2.29968977]
[1718885146919,0.00865,66296.0,66295.0,2.31368977]
[1718885148407,1e-08,66296.0,66295.0,2.32768977]
[1718885154851,1e-08,66296.0,66295.0,2.42768977]
[1718885155241,1e-08,66296.0,66295.0,2.45462504]
[1718885155724,1e-08,66296.0,66295.0,1.64136304]
[1718885155934,1e-08,66296.0,66295.0,1.57022777]
[1718885156156,1e-08,66296.0,66295.0,1.75092777]
[1718885156348,1e-08,66296.0,66295.0,0.61748186]
[1718885156553,1e-08,66296.0,66295.0,0.78418186]
[1718885156915,1e-08,66296.0,66295.0,0.77018186]
[1718885157541,1e-08,66296.0,66295.0,0.43748186]
[1718885157736,1e-08,66296.0,66295.0,0.39952577]
[1718885157944,1e-08,66296.0,66295.0,0.41352577]
[1718885158323,1e-08,66296.0,66295.0,0.42752577]
[1718885158695,1e-08,66296.0,66295.0,0.17032577]
[1718885158842,1e-08,66296.0,66295.0,0.23432577]
[1718885159040,1e-08,66296.0,66295.0,0.26832577]
[1718885159496,1e-08,66296.0,66295.0,0.24032577]
[1718885159706,1e-08,66296.0,66295.0,0.26832577]
[1718885159899,1e-08,66296.0,66295.0,0.26927177]
[1718885160055,1e-08,66296.0,66295.0,0.58047177]
[1718885160265,1e-08,66296.0,66295.0,0.73131177]
[1718885160449,1e-08,66296.0,66295.0,1.47677377]
[1718885160652,1e-08,66296.0,66295.0,1.49977377]
[1718885161208,1e-08,66296.0,66295.0,1.37879277]
[1718885161420,1e-08,66296.0,66295.0,0.76117177]
[1718885161631,1e-08,66296.0,66295.0,0.56647177]
[1718885162435,1e-08,66296.0,66295.0,0.41447177]
[1718885162663,1e-08,66296.0,66295.0,0.45047177]
[1718885162901,1e-08,66296.0,66295.0,0.56647177]
[1718885163119,1e-08,66296.0,66295.0,1.47797377]
[1718885163287,1e-08,66296.0,66295.0,1.65787377]
[1718885163460,1e-08,66296.0,66295.0,1.95955477]
[1718885163825,1e-08,66296.0,66295.0,1.97355477]
[1718885164015,1e-08,66296.0,66295.0,1.95955477]
[1718885164504,1e-08,66296.0,66295.0,1.94555477]
[1718885164857,1e-08,66296.0,66295.0,1.95955477]
[1718885165281,0.00863,66313.0,66312.0,0.02]
[1718885165507,0.00863,66313.0,66312.0,0.53376112]
[1718885165680,0.14733,66313.0,66312.0,0.18738892]
[1718885165866,0.33293,66313.0,66312.0,0.18738892]
[1718885166076,0.33293,66313.0,66312.0,0.0148278]
[1718885166277,0.33293,66313.0,66304.0,0.02]
[1718885166278,0.00863,66313.0,66304.0,0.02]
[1718885166485,0.1802,66310.0,66305.0,0.02301598]
[1718885166699,0.00936049,66309.0,66307.0,0.02]
[1718885166898,0.00936049,66309.0,66308.0,0.15256112]
[1718885167101,0.00936049,66309.0,66308.0,0.18740847]
[1718885167303,0.00936091,66309.0,66308.0,0.18740847]
[1718885167713,0.1802,66310.0,66308.0,0.16740847]
[1718885169910,0.1382,66311.0,66308.0,0.16740847]
[1718885169911,0.00863,66313.0,66312.0,0.02]
[1718885170267,0.00863,66313.0,66312.0,0.03482812]
[1718885171524,0.00863,66313.0,66312.0,0.39483012]
[1718885171729,0.00863,66313.0,66312.0,0.69643412]
[1718885171940,0.00863,66313.0,66312.0,0.97913412]
[1718885172561,0.00863,66313.0,66312.0,0.99313412]
[1718885172966,0.00863,66313.0,66312.0,1.29473812]
[1718885173164,0.00863,66313.0,66312.0,1.34473812]
[1718885173368,0.00863,66313.0,66312.0,1.35873812]
[1718885173571,0.00863,66313.0,66312.0,1.58758096]
[1718885173775,0.00863,66313.0,66312.0,1.53758096]
[1718885173951,0.00863,66313.0,66312.0,1.58758096]
[1718885175859,0.00863,66313.0,66312.0,1.88918496]
[1718885176071,0.00863,66313.0,66312.0,1.91218496]
[1718885176658,0.00863,66313.0,66312.0,1.89818496]
[1718885177084,0.00863,66313.0,66312.0,1.91218496]
[1718885177286,0.00863,66313.0,66312.0,1.89818496]
[1718885177701,0.00863,66313.0,66312.0,1.91218496]
[1718885178194,0.00863,66313.0,66312.0,1.89818496]
[1718885178821,0.00863,66313.0,66312.0,1.69448496]
[1718885178986,0.00863,66313.0,66312.0,2.21158496]
[1718885179184,0.00863,66313.0,66312.0,2.19758496]
[1718885179385,0.00863,66313.0,66312.0,1.30259924]
[1718885179591,0.00863,66313.0,66312.0,1.49729924]
[1718885179792,0.00863,66313.0,66312.0,1.78490324]
[1718885180201,0.00863,66313.0,66312.0,1.79890324]
[1718885180414,0.00863,66313.0,66312.0,1.78490324]
[1718885180622,0.00863,66313.0,66312.0,2.26850724]
[1718885180817,0.00863,66313.0,66312.0,2.40920724]
[1718885181132,0.00863,66313.0,66312.0,2.44620724]
[1718885181357,0.00863,66313.0,66312.0,2.54620724]
[1718885181562,0.00863,66313.0,66312.0,2.53220724]
[1718885181759,0.00863,66313.0,66312.0,2.54620724]
[1718885182349,0.00863,66313.0,66312.0,2.56020724]
[1718885182541,0.00863,66313.0,66312.0,2.54620724]
[1718885183075,0.00863,66313.0,66312.0,2.56020724]
[1718885183917,0.00863,66313.0,66312.0,2.59477904]
[1718885184674,0.00863,66313.0,66312.0,2.60987904]
[1718885188768,0.00863,66313.0,66312.0,2.42917904]
[1718885188983,0.00863,66313.0,66312.0,2.60987904]
[1718885194132,0.00863,66313.0,66312.0,2.61852904]
[1718885195477,0.00086,66322.0,66321.0,0.3812]
[1718885195690,0.00086,66322.0,66321.0,1.20584212]
[1718885195823,0.00086,66322.0,66321.0,1.82373526]
[1718885196022,0.00086,66322.0,66321.0,2.12529826]
[1718885196889,0.00086,66322.0,66321.0,2.13929826]
[1718885197088,0.00086,66322.0,66321.0,2.15329826]
[1718885198889,0.00086,66322.0,66321.0,2.01829826]
[1718885199070,0.00086,66322.0,66321.0,1.83569826]
[1718885201337,0.03935712,66336.0,66335.0,0.170749]
[1718885201482,0.03935712,66336.0,66335.0,0.32331012]
[1718885201684,0.03928083,66336.0,66335.0,0.33566207]
[1718885202638,0.03928083,66336.0,66335.0,0.34966207]
[1718885203225,0.03928083,66336.0,66335.0,0.36366207]
[1718885204204,0.17818083,66336.0,66335.0,0.36366207]
[1718885206467,0.18754801,66336.0,66335.0,0.36366207]
[1718885206672,0.18754801,66336.0,66335.0,1.06866007]
[1718885206873,0.18754801,66336.0,66335.0,0.76716107]
[1718885207085,0.17818083,66336.0,66335.0,0.92636107]
[1718885207292,0.18755007,66336.0,66335.0,0.92636107]
[1718885207511,0.17818083,66336.0,66335.0,1.27786007]
[1718885207751,0.17818083,66336.0,66335.0,0.97636107]
[1718885207983,0.17818083,66336.0,66335.0,0.87436107]
[1718885208199,0.18754838,66336.0,66335.0,0.87436107]
[1718885208407,0.17818083,66336.0,66335.0,0.87436107]
[1718885208615,0.17818083,66336.0,66335.0,0.97636107]
[1718885208832,0.18754691,66336.0,66335.0,0.97636107]
[1718885209418,0.18754691,66336.0,66335.0,0.97436107]
[1718885209790,0.18754691,66336.0,66335.0,0.87436107]
[1718885209995,0.18754691,66336.0,66335.0,0.97636107]
[1718885210417,0.00936608,66336.0,66335.0,0.97636107]
[1718885210617,0.14813,66338.0,66337.0,0.122]
[1718885210819,0.15749419,66338.0,66337.0,0.28690068]
[1718885211226,0.15749419,66338.0,66337.0,0.18490068]
[1718885211765,0.15749419,66338.0,66337.0,0.63713568]
[1718885212000,0.15749419,66338.0,66337.0,0.75313568]
[1718885212180,0.15749419,66338.0,66337.0,1.04062568]
[1718885212385,0.01799419,66338.0,66337.0,0.73913568]
[1718885212732,0.01799419,66338.0,66337.0,1.05462568]
[1718885212949,0.01799419,66338.0,66337.0,1.21382568]
[1718885213061,0.01799419,66338.0,66337.0,1.26382568]
[1718885213259,0.01799419,66338.0,66337.0,1.27782568]
[1718885213465,0.00863,66338.0,66337.0,1.27782568]
[1718885213995,0.00863,66338.0,66337.0,1.26382568]
[1718885214409,0.00863,66338.0,66337.0,1.27782568]
[1718885214810,0.00863,66338.0,66337.0,1.26382568]
[1718885215367,0.00863,66338.0,66337.0,1.27782568]
[1718885215616,0.00863,66338.0,66337.0,1.26382568]
[1718885215811,0.00863,66338.0,66337.0,1.27782568]
[1718885215934,0.00863,66338.0,66337.0,1.26382568]
[1718885216333,0.00863,66338.0,66337.0,1.27782568]
[1718885216982,0.00863,66338.0,66337.0,1.32782568]
[1718885217963,0.00863,66338.0,66337.0,1.31382568]
[1718885218376,0.00863,66338.0,66337.0,1.50162568]
[1718885218577,0.00632768,66338.0,66337.0,1.50162568]
[1718885218778,0.00632768,66338.0,66337.0,1.80311568]
[1718885218983,0.00632768,66338.0,66337.0,1.48762568]
[1718885219199,0.00632768,66338.0,66337.0,1.47362568]
[1718885219401,0.00632768,66338.0,66337.0,1.78911568]
[1718885219606,0.00632768,66338.0,66337.0,1.80311568]
[1718885219974,0.00632768,66338.0,66337.0,1.48762568]
[1718885220172,0.00632768,66338.0,66337.0,1.61531568]
[1718885220380,0.00632768,66338.0,66337.0,1.62931568]
[1718885222129,0.00632768,66338.0,66337.0,1.66831568]
[1718885222351,0.00632768,66338.0,66337.0,1.81331568]
[1718885222559,0.00632768,66338.0,66337.0,1.79931568]
[1718885222763,0.00632768,66338.0,66337.0,2.11480568]
[1718885223030,0.00632768,66338.0,66337.0,2.13104568]
[1718885223251,0.00632768,66338.0,66337.0,2.14504568]
[1718885224112,0.00632768,66338.0,66337.0,1.63831568]
[1718885224340,0.00632768,66338.0,66337.0,0.92433568]
[1718885224545,0.00632768,66338.0,66337.0,1.02433568]
[1718885224749,0.00632768,66338.0,66337.0,0.91033568]
[1718885225387,0.00632768,66338.0,66337.0,0.89633568]
[1718885225621,0.01569592,66338.0,66337.0,0.91033568]
[1718885226640,0.00632768,66338.0,66337.0,0.91033568]
[1718885226814,0.30752768,66338.0,66337.0,0.33810068]
[1718885227080,0.30752768,66338.0,66337.0,0.16490068]
[1718885227288,0.30752768,66338.0,66337.0,0.17890068]
[1718885228114,0.30752768,66338.0,66337.0,0.19290068]
[1718885228328,0.30752768,66338.0,66337.0,0.16490068]
[1718885228747,0.30752768,66338.0,66337.0,0.17890068]
[1718885228952,0.30752768,66338.0,66337.0,0.16490068]
[1718885229267,0.30752768,66338.0,66337.0,0.19890068]
[1718885229725,0.00632768,66338.0,66337.0,0.96233568]
[1718885230291,0.00632768,66338.0,66337.0,1.29982568]
[1718885230503,0.00632768,66338.0,66337.0,1.48052568]
[1718885230724,0.00632768,66338.0,66337.0,1.79601568]
[1718885230923,0.00632768,66338.0,66337.0,1.81901568]
[1718885231815,0.00632768,66338.0,66337.0,1.83301568]
[1718885232224,0.00632768,66338.0,66337.0,1.81901568]
[1718885232422,0.00632768,66338.0,66337.0,1.52396568]
[1718885232868,0.00632768,66338.0,66337.0,1.08347568]
[1718885233133,0.00632768,66338.0,66337.0,1.17147568]
[1718885233279,0.00632768,66338.0,66337.0,1.19947568]
[1718885233484,0.00632768,66338.0,66337.0,1.09747568]
[1718885233683,0.00632768,66338.0,66337.0,0.20534068]
[1718885233906,0.00632768,66338.0,66337.0,0.17134068]
[1718885233907,0.30312768,66338.0,66337.0,0.17134068]
[1718885234057,0.30312768,66338.0,66337.0,0.19134068]
[1718885234257,0.30312768,66338.0,66337.0,0.20534068]
[1718885234750,0.30312768,66338.0,66337.0,0.17734068]
[1718885235080,0.30312768,66338.0,66337.0,0.19134068]
[1718885235483,0.30312768,66338.0,66337.0,0.17734068]
[1718885235678,0.30312768,66338.0,66337.0,0.19134068]
[1718885236105,0.30312768,66338.0,66337.0,0.15734068]
[1718885236482,0.30312768,66338.0,66337.0,0.17134068]
[1718885236684,0.30312768,66338.0,66337.0,0.18534068]
[1718885237477,0.30312768,66338.0,66337.0,0.17134068]
[1718885237900,0.30312768,66338.0,66337.0,0.18534068]
[1718885240123,0.00632768,66338.0,66337.0,0.20534068]
[1718885240331,0.00632768,66338.0,66337.0,0.7435674]
[1718885240767,0.00632768,66338.0,66337.0,1.8541374]
[1718885240962,0.00632768,66338.0,66337.0,0.6428224]
[1718885241206,0.00632768,66338.0,66337.0,0.9742674]
[1718885241411,0.00632768,66338.0,66337.0,1.2757574]
[1718885241614,0.00632768,66338.0,66337.0,1.1737574]
[1718885241824,0.00632768,66338.0,66337.0,1.2617574]
[1718885242217,0.00632768,66338.0,66337.0,1.2757574]
[1718885242418,0.00632768,66338.0,66337.0,0.6775674]
[1718885242620,0.00632768,66338.0,66337.0,1.2617574]
[1718885242828,0.00632768,66338.0,66337.0,1.2757574]
[1718885243001,0.00632768,66338.0,66337.0,1.2617574]
[1718885243215,0.29722768,66338.0,66337.0,0.17134068]
[1718885243419,0.29722768,66338.0,66337.0,0.20534068]
[1718885243617,0.29722768,66338.0,66337.0,0.18534068]
[1718885243793,0.29722768,66338.0,66337.0,0.17134068]
[1718885244198,0.29722768,66338.0,66337.0,0.18534068]
[1718885246320,0.29722768,66338.0,66337.0,0.17134068]
[1718885246528,0.29722768,66338.0,66337.0,0.15734068]
[1718885246728,0.29722768,66338.0,66337.0,0.17134068]
[1718885246933,0.29722768,66338.0,66337.0,0.18534068]
[1718885253289,0.00632768,66338.0,66337.0,0.18534068]
[1718885253497,0.00632768,66338.0,66337.0,0.20534068]
[1718885255317,0.00632768,66338.0,66337.0,0.18534068]
[1718885255698,0.00632768,66338.0,66337.0,0.20534068]
[1718885256475,0.00632768,66338.0,66337.0,0.18534068]
[1718885257060,0.00632768,66338.0,66337.0,0.20534068]
[1718885257604,0.00632768,66338.0,66337.0,0.41454068]
[1718885258158,0.00632768,66338.0,66337.0,0.56528568]
[1718885258578,0.00632768,66338.0,66337.0,0.80128568]
[1718885259302,0.00632768,66338.0,66337.0,1.27026568]
[1718885260425,0.00632768,66338.0,66337.0,1.25626568]
[1718885260663,0.00632768,66338.0,66337.0,1.27026568]
[1718885260993,0.00632768,66338.0,66337.0,1.25626568]
[1718885261188,0.00632768,66338.0,66337.0,1.24226568]
[1718885261433,0.00632768,66338.0,66337.0,1.30721168]
[1718885261963,0.00632768,66338.0,66337.0,1.34060548]
[1718885262247,0.00632768,66338.0,66337.0,1.32660548]
[1718885262386,0.00632768,66338.0,66337.0,1.34060548]
[1718885263336,0.00632768,66338.0,66337.0,1.35069227]
[1718885263945,0.00632768,66338.0,66337.0,1.50339227]
[1718885264296,0.00632768,66338.0,66337.0,1.53139227]
[1718885265063,0.00632768,66338.0,66337.0,1.54539227]
[1718885265711,0.00632768,66338.0,66337.0,1.53139227]
[1718885266328,0.00632768,66338.0,66337.0,1.80488227]
[1718885266741,0.00632768,66338.0,66337.0,1.81888227]
[1718885267321,0.00632768,66338.0,66337.0,1.83288227]
[1718885270305,0.00632768,66338.0,66337.0,1.83524817]
[1718885274589,0.00632768,66338.0,66337.0,1.53175817]
[1718885274787,0.00632768,66338.0,66337.0,1.38175817]
[1718885275007,0.00632768,66338.0,66337.0,1.13026817]
[1718885275382,0.00632768,66338.0,66337.0,1.08026817]
[1718885275586,0.00632768,66338.0,66337.0,1.23026817]
[1718885276234,0.00632768,66338.0,66337.0,1.23226817]
[1718885276632,0.00632768,66338.0,66337.0,0.92877817]
[1718885277011,0.00632768,66338.0,66337.0,0.44373469]
[1718885278699,0.00632768,66338.0,66337.0,0.25114089]
[1718885278700,0.25802768,66338.0,66337.0,0.25114089]
[1718885279225,0.25802768,66338.0,66337.0,0.18114089]
[1718885282162,0.25802768,66338.0,66337.0,0.16714089]
[1718885282610,0.25802768,66338.0,66337.0,0.18114089]
[1718885283055,0.25802768,66338.0,66337.0,0.16714089]
[1718885283387,0.25802768,66338.0,66337.0,0.15314089]
[1718885283851,0.25802768,66338.0,66337.0,0.16714089]
[1718885284259,0.25802768,66338.0,66337.0,0.15314089]
[1718885284459,0.25802768,66338.0,66337.0,0.16714089]
[1718885284922,0.2673996,66338.0,66337.0,0.16714089]
[1718885285137,0.2673996,66338.0,66337.0,0.18114089]
[1718885286457,0.2673996,66338.0,66337.0,0.16714089]
[1718885286814,0.2673996,66338.0,66337.0,0.18114089]
[1718885289196,0.2598396,66338.0,66337.0,0.18114089]
[1718885291990,0.2598396,66338.0,66337.0,0.20114089]
[1718885292338,0.00937192,66338.0,66337.0,0.20114089]
[1718885292540,0.1,66348.0,66337.0,0.20114089]
[1718885292765,0.1,66348.0,66341.0,0.15256112]
[1718885292966,0.26617604,66347.0,66341.0,0.15256112]
[1718885293162,0.10937604,66346.0,66342.0,0.00783676]
[1718885293367,0.00937604,66345.0,66343.0,0.15256112]
[1718885293629,0.00937604,66345.0,66343.0,0.16039307]
[1718885294207,0.1,66346.0,66343.0,0.16039307]
[1718885294877,0.1,66346.0,66343.0,0.17439307]
[1718885295285,0.1,66346.0,66343.0,0.16039307]
[1718885297698,0.1,66346.0,66343.0,0.18839307]
[1718885297909,0.00468659,66345.0,66343.0,0.18839307]
[1718885298825,0.00468659,66345.0,66343.0,0.17439307]
[1718885299118,0.00468659,66345.0,66343.0,0.18839307]
[1718885299327,0.00468659,66345.0,66344.0,0.15256112]
[1718885299532,0.00468659,66345.0,66344.0,0.42906112]
[1718885299739,0.00863,66350.0,66349.0,0.02]
[1718885299940,0.00863,66350.0,66349.0,0.17256112]
[1718885300339,0.00863,66350.0,66349.0,0.1803619]
[1718885300667,0.00863,66350.0,66349.0,0.1703619]
[1718885300980,0.00863,66350.0,66349.0,0.6452799]
[1718885301215,0.00863,66350.0,66349.0,1.3889159]
[1718885301638,0.00863,66350.0,66349.0,1.6903519]
[1718885301840,0.00863,66350.0,66349.0,1.6763519]
[1718885302151,0.00863,66350.0,66349.0,1.9917879]
[1718885302351,0.00863,66350.0,66349.0,2.0417879]
[1718885302579,0.00863,66350.0,66349.0,1.9397879]
[1718885302831,0.00863,66350.0,66349.0,2.0277879]
[1718885303180,0.00863,66350.0,66349.0,2.0417879]
[1718885303584,0.00863,66350.0,66349.0,2.0277879]
[1718885303790,0.00863,66350.0,66349.0,2.0417879]
[1718885304202,0.00863,66350.0,66349.0,2.0277879]
[1718885304378,0.00863,66350.0,66349.0,2.0787879]
[1718885304808,0.1063637,66374.0,66365.0,0.02]
[1718885305004,0.00937877,66373.0,66367.0,0.15256112]
[1718885305550,0.00937877,66373.0,66368.0,0.007708]
[1718885305713,0.00937877,66373.0,66357.0,0.476]
[1718885305714,0.09015519,66371.0,66357.0,0.476]
[1718885305909,0.00937877,66370.0,66357.0,0.476]
[1718885306160,0.00937877,66370.0,66358.0,0.00774088]
[1718885306368,0.00937877,66370.0,66367.0,0.013]
[1718885306518,0.09015519,66372.0,66367.0,0.013]
[1718885306519,0.00937877,66369.0,66367.0,0.013]
[1718885306719,0.09015519,66372.0,66367.0,0.013]
[1718885306720,0.00937877,66368.0,66367.0,0.013]
[1718885306919,0.00937877,66369.0,66367.0,0.013]
[1718885307161,0.09015519,66370.0,66367.0,0.013]
[1718885307162,0.00937877,66368.0,66367.0,0.013]
[1718885307361,0.00937877,66368.0,66367.0,0.16556112]
[1718885307583,0.00937877,66369.0,66367.0,0.16556112]
[1718885307784,0.00937877,66368.0,66367.0,0.16556112]
[1718885307989,0.2451,66368.0,66367.0,0.16556112]
[1718885308166,0.2451,66368.0,66367.0,0.17956112]
[1718885308167,0.35447877,66368.0,66367.0,0.17956112]
[1718885308372,0.35447877,66368.0,66367.0,0.16656112]
[1718885308572,0.35447877,66368.0,66367.0,0.1602608]
[1718885309028,0.35447877,66368.0,66367.0,0.1692608]
[1718885309674,0.35447877,66368.0,66367.0,0.1772608]
[1718885310159,0.21627877,66368.0,66367.0,0.1692608]
[1718885310338,0.36167877,66368.0,66367.0,0.1692608]
[1718885310494,0.36167877,66368.0,66367.0,0.1832608]
[1718885310679,0.36167877,66368.0,66367.0,0.16656112]
[1718885310883,0.36167877,66368.0,66367.0,0.1832608]
[1718885310884,0.36167755,66368.0,66367.0,0.1832608]
[1718885311497,0.36167755,66368.0,66367.0,0.1742608]
[1718885311699,0.36167755,66368.0,66367.0,0.1882608]
[1718885311921,0.21627755,66368.0,66367.0,0.1742608]
[1718885312163,0.10937755,66368.0,66367.0,0.1742608]
[1718885312389,0.00937755,66368.0,66367.0,0.1882608]
[1718885312592,0.10937755,66368.0,66367.0,0.1742608]
[1718885312800,0.00937755,66368.0,66367.0,0.1882608]
[1718885313012,0.10937755,66373.0,66367.0,0.1882608]
[1718885313221,0.00937755,66372.0,66368.0,0.15256112]
[1718885313427,0.00937755,66372.0,66368.0,0.160256]
[1718885314305,0.00937755,66371.0,66368.0,0.160256]
[1718885314486,0.00937755,66370.0,66368.0,0.160256]
[1718885314692,0.00937755,66369.0,66368.0,0.160256]
[1718885314913,0.00937755,66369.0,66368.0,0.173256]
[1718885315040,0.00937755,66369.0,66368.0,0.160256]
[1718885315249,0.00937755,66380.0,66368.0,0.160256]
[1718885315449,0.00937755,66380.0,66369.0,0.00301314]
[1718885315654,0.00937755,66380.0,66370.0,0.15256112]
[1718885315892,0.00937755,66380.0,66370.0,0.16024482]
[1718885317309,0.00937755,66380.0,66370.0,0.17024482]
[1718885317537,0.00937755,66380.0,66371.0,0.01301314]
[1718885317740,0.00937755,66380.0,66372.0,0.15256112]
[1718885317938,0.00937755,66380.0,66372.0,0.16023523]
[1718885318763,0.00937755,66380.0,66378.0,0.15256112]
[1718885319166,0.00937755,66379.0,66378.0,0.15256112]
[1718885319368,0.00937755,66384.0,66378.0,0.15256112]
[1718885319572,0.00937755,66383.0,66378.0,0.15256112]
[1718885319706,0.1075,66385.0,66377.0,0.1171]
[1718885319707,0.00937755,66382.0,66380.0,0.15256112]
[1718885319915,0.00937755,66384.0,66380.0,0.15256112]
[1718885320119,0.00937755,66383.0,66380.0,0.15256112]
[1718885320345,0.1075,66385.0,66380.0,0.15256112]
[1718885320346,0.00937755,66382.0,66380.0,0.15256112]
[1718885320542,0.1,66384.0,66380.0,0.15256112]
[1718885320543,0.00937755,66381.0,66380.0,0.15256112]
[1718885320949,0.00937755,66383.0,66380.0,0.15256112]
[1718885321202,0.00937755,66382.0,66380.0,0.15256112]
[1718885321421,0.00937755,66381.0,66380.0,0.16556112]
[1718885321649,0.00937755,66386.0,66380.0,0.16556112]
[1718885321827,0.00937755,66386.0,66380.0,0.15256112]
[1718885322034,0.00937755,66386.0,66380.0,0.16656112]
[1718885322237,0.00937755,66386.0,66385.0,0.15256112]
[1718885322801,0.00937755,66388.0,66385.0,0.15256112]
[1718885323001,0.00937755,66387.0,66384.0,0.1406]
[1718885323205,0.00937755,66386.0,66384.0,0.1506]
[1718885323390,0.00937755,66385.0,66384.0,0.2534]
[1718885323587,0.00937755,66388.0,66384.0,0.41596112]
[1718885323887,0.00864,66389.0,66387.0,0.15256112]
[1718885324084,0.00864,66389.0,66388.0,0.15256112]
[1718885324669,0.01802201,66389.0,66388.0,0.15256112]
[1718885325634,0.01802201,66389.0,66388.0,0.16656112]
[1718885325806,0.00864,66389.0,66388.0,0.16656112]
[1718885326280,0.00864,66389.0,66388.0,0.18056112]
[1718885327773,0.01802211,66389.0,66388.0,0.18056112]
[1718885327974,0.27812211,66389.0,66388.0,0.18056112]
[1718885328177,0.27812211,66389.0,66388.0,0.16656112]
[1718885328489,0.37812211,66389.0,66388.0,0.15256112]
[1718885328700,0.37812211,66389.0,66388.0,0.16656112]
[1718885328924,0.37812211,66389.0,66388.0,0.18056112]
[1718885329618,0.37812021,66389.0,66388.0,0.18056112]
[1718885330978,0.37812021,66389.0,66388.0,0.16656112]
[1718885331197,0.38812021,66389.0,66388.0,0.014]
[1718885331408,0.38812021,66389.0,66388.0,0.03558409]
[1718885331409,0.39811831,66389.0,66388.0,0.03558409]
[1718885331618,0.39811831,66389.0,66388.0,0.028]
[1718885331827,0.39811831,66389.0,66388.0,0.014]
[1718885332255,0.39811831,66389.0,66388.0,0.028]
[1718885332634,0.2456,66385.0,66374.0,0.476]
[1718885332847,0.10937831,66384.0,66375.0,0.15256112]
[1718885333394,0.00937858,66383.0,66375.0,0.15256112]
[1718885333968,0.01,66382.0,66375.0,0.15256112]
[1718885334170,0.1069,66380.0,66375.0,0.15256112]
[1718885334489,0.10937858,66379.0,66375.0,0.15256112]
[1718885334687,0.00937858,66378.0,66375.0,0.15256112]
[1718885335643,0.00937858,66378.0,66377.0,1.30342384]
[1718885335855,0.11218721,66399.0,66377.0,1.30342384]
[1718885335856,0.1423,66397.0,66384.0,0.01]
[1718885335983,0.1423,66397.0,66388.0,0.07628172]
[1718885336188,0.00938026,66396.0,66388.0,0.07628172]
[1718885336401,0.1112,66399.0,66388.0,0.33518172]
[1718885336753,0.15094,66403.0,66388.0,0.22798172]
[1718885336979,0.0322134,66402.0,66388.0,0.23798172]
[1718885337137,0.1322134,66402.0,66388.0,0.23798172]
[1718885337500,0.1322134,66402.0,66388.0,0.39054284]
[1718885337911,0.0322134,66402.0,66388.0,0.39054284]
[1718885338398,0.15094,66403.0,66388.0,0.39054284]
[1718885338399,0.00864,66403.0,66388.0,1.18003084]
[1718885338803,0.00864,66403.0,66388.0,1.48128984]
[1718885339450,0.00864,66403.0,66388.0,1.46728984]
[1718885339874,0.00864,66403.0,66388.0,1.48128984]
[1718885340077,0.00864,66403.0,66388.0,1.49528984]
[1718885341427,0.00864,66403.0,66388.0,1.48128984]
[1718885341644,0.00864,66403.0,66388.0,1.08374912]
[1718885341865,0.00864,66403.0,66388.0,1.10374912]
[1718885342045,0.00864,66403.0,66388.0,1.40500812]
[1718885342643,0.00864,66403.0,66388.0,1.41900812]
[1718885343417,0.1134,66398.0,66388.0,1.41900812]
[1718885344002,0.1422,66400.0,66388.0,1.41900812]
[1718885344653,0.1134,66401.0,66388.0,1.40500812]
[1718885344855,0.1,66400.0,66388.0,1.41900812]
[1718885345270,0.1,66400.0,66388.0,1.40500812]
[1718885345689,0.1,66400.0,66388.0,1.41900812]
[1718885346171,0.1,66400.0,66388.0,1.39100812]
[1718885346613,0.1453,66394.0,66388.0,1.16260812]
[1718885346768,0.1,66400.0,66388.0,1.16260812]
[1718885346963,0.1,66400.0,66388.0,1.42090812]
[1718885347173,0.1,66400.0,66388.0,1.53121578]
[1718885347368,0.10864,66403.0,66388.0,1.53121578]
[1718885347572,0.00864,66403.0,66388.0,1.53121578]
[1718885348762,0.00864,66403.0,66388.0,1.42921578]
[1718885349205,0.00864,66403.0,66388.0,1.60991578]
[1718885349596,0.00864,66403.0,66388.0,1.70991578]
[1718885349800,0.00864,66403.0,66388.0,1.60991578]
[1718885350082,0.00864,66403.0,66388.0,1.42921578]
[1718885350283,0.00864,66403.0,66388.0,1.60991578]
[1718885351544,0.00864,66403.0,66388.0,1.28865678]
[1718885351700,0.00864,66403.0,66388.0,1.30865678]
[1718885351904,0.00864,66403.0,66388.0,1.60991578]
[1718885352590,0.00864,66403.0,66388.0,1.30865678]
[1718885353738,0.00864,66403.0,66388.0,0.74842778]
[1718885353953,0.109,66393.0,66388.0,0.18886878]
[1718885355080,0.25654,66389.0,66388.0,0.18886878]
[1718885355459,0.25654,66389.0,66388.0,0.18056112]
[1718885355898,0.25654,66389.0,66388.0,0.16139884]
[1718885356354,0.25654,66389.0,66388.0,0.17539884]
[1718885356511,0.25654,66389.0,66388.0,0.18939884]
[1718885356691,0.25654,66389.0,66388.0,0.17539884]
[1718885356891,0.25654,66389.0,66388.0,0.16139884]
[1718885358150,0.25654,66389.0,66388.0,0.17539884]
[1718885359006,0.25654,66389.0,66388.0,0.18939884]
[1718885359228,0.25654,66389.0,66388.0,0.19034484]
[1718885362309,0.42413779,66389.0,66388.0,0.19034484]
[1718885362511,0.35654,66389.0,66388.0,0.19034484]